bitfinex/quotes_ETHUSD_20220311
["timestamp","ask_amount","ask_price","bid_price","bid_amount"]
[1647032326719,0.88693225,2534.6,2534.4,0.02802326]
[1647032326919,1.31581314,2534.5,2534.4,0.02802326]
[1647032327523,1.31581314,2534.5,2534.4,0.00082927]
[1647032328159,1.31581314,2534.5,2534.3,0.00264083]
[1647032328764,1.31581314,2534.5,2534.3,0.00082785]
[1647032328960,1.31581314,2534.5,2534.3,0.00264087]
[1647032329566,3.9887,2535.1,2534.3,0.18534204]
[1647032329763,1.31761876,2535.0,2534.3,0.82239961]
[1647032329966,1.31761876,2535.0,2534.3,0.82058659]
[1647032330165,9.3988,2535.3,2534.4,1.97246]
[1647032330366,1.31748042,2535.2,2534.8,0.80807676]
[1647032330568,1.31748042,2535.2,2534.9,0.98621]
[1647032333217,1.31748042,2535.2,2535.1,0.00082728]
[1647032333418,1.0,2535.3,2535.2,0.9861]
[1647032333618,1.37360289,2535.6,2535.2,0.9861]
[1647032333923,1.31773658,2535.5,2535.1,2.40636477]
[1647032334121,1.31773658,2535.5,2535.3,0.98591]
[1647032334318,1.31773658,2535.5,2535.4,0.95018229]
[1647032334718,1.31773658,2535.5,2535.4,2.50510229]
[1647032335120,1.31773658,2535.5,2535.4,2.80510229]
[1647032335661,0.5,2535.7,2535.4,3.79103439]
[1647032335961,0.5,2535.7,2535.4,4.77697439]
[1647032336161,0.04467467,2536.1,2535.5,0.07727909]
[1647032336362,0.04467467,2536.1,2535.6,1.30475]
[1647032336363,1.28654632,2536.0,2535.6,1.30475]
[1647032336566,1.0,2535.7,2535.6,1.60475]
[1647032336767,0.70082897,2536.6,2535.9,0.98568]
[1647032336967,0.00380118,2536.6,2536.1,0.07212462]
[1647032337167,0.69702779,2536.7,2536.1,0.07212462]
[1647032337364,0.00327367,2536.6,2536.1,0.07212462]
[1647032338366,0.69702779,2536.7,2535.8,5.5428755]
[1647032338567,0.5,2536.3,2535.9,1.3]
[1647032338765,0.5,2536.3,2535.8,0.6]
[1647032339219,0.5,2536.3,2535.8,1.14814323]
[1647032339415,0.5,2536.3,2535.8,2.13408323]
[1647032339416,0.04844157,2536.3,2535.8,2.13408323]
[1647032339613,0.04844157,2536.3,2535.8,1.14814323]
[1647032340415,0.5,2536.0,2535.8,0.3]
[1647032340614,0.5,2536.0,2535.6,0.98683585]
[1647032340814,0.55563903,2536.0,2535.6,0.00082585]
[1647032341214,0.5,2536.0,2535.6,0.00082585]
[1647032341416,0.04609212,2536.3,2535.6,0.00082585]
[1647032341614,0.04609212,2536.3,2535.9,1.13076158]
[1647032341822,0.04609212,2536.3,2535.9,2.11666158]
[1647032342218,0.04609212,2536.3,2535.9,2.41666158]
[1647032342419,1.0,2536.0,2535.9,2.41666158]
[1647032343263,1.0,2536.0,2535.9,1.43076158]
[1647032343662,1.0,2536.0,2535.8,0.00080946]
[1647032343866,0.0553319,2535.9,2535.8,0.00080946]
[1647032344065,0.0553319,2535.9,2534.9,0.42853606]
[1647032344066,0.00024799,2535.7,2534.9,0.42853606]
[1647032344261,0.00024799,2535.7,2534.9,0.03393606]
[1647032344262,0.569,2535.6,2534.9,0.03393606]
[1647032344466,0.05424185,2535.5,2534.3,5.5703]
[1647032344663,0.90960637,2534.8,2534.7,0.0017562]
[1647032345664,0.90960637,2534.8,2534.4,1.97271]
[1647032345864,0.90960637,2534.8,2534.2,0.0830558]
[1647032346062,0.90960637,2534.8,2534.2,0.00790435]
[1647032346263,1.94643004,2534.8,2534.2,0.00790435]
[1647032346710,1.94643004,2534.8,2534.1,1.9729]
[1647032346915,1.94643004,2534.8,2534.3,0.81705398]
[1647032347120,0.95987004,2534.8,2534.1,2.1729]
[1647032347315,0.90960637,2534.8,2534.1,2.1729]
[1647032347918,0.90960637,2534.8,2534.1,1.8729]
[1647032348116,15.41,2535.2,2533.9,1.97304]
[1647032348117,0.82456282,2534.4,2533.9,1.97304]
[1647032348317,0.82456282,2534.4,2534.3,0.00214913]
[1647032348516,0.98666,2534.6,2534.3,0.00214913]
[1647032348715,0.05629398,2534.4,2534.3,0.00214913]
[1647032348919,0.98666,2534.6,2534.3,0.00214913]
[1647032349119,0.97343076,2534.6,2533.9,1.97304]
[1647032349319,0.97343076,2534.6,2533.9,2.27304]
[1647032349520,0.97343076,2534.6,2534.2,0.00214921]
[1647032349917,3.99929748,2534.8,2534.2,0.00214921]
[1647032349918,2.02602948,2534.8,2534.2,0.00214921]
[1647032350120,0.04402523,2534.7,2534.2,0.00214921]
[1647032350476,0.04402523,2534.7,2534.0,0.98657]
[1647032350664,0.04402523,2534.7,2534.4,0.00214908]
[1647032350864,0.13819997,2535.0,2534.4,0.00214908]
[1647032350865,1.10547348,2534.5,2534.4,0.00214908]
[1647032351665,1.10547348,2534.5,2533.9,0.3]
[1647032351872,1.10547348,2534.5,2534.3,0.00178208]
[1647032352070,1.0311801,2534.4,2534.3,0.00178208]
[1647032352871,1.0311801,2534.4,2533.8,1.24114237]
[1647032353072,1.0311801,2534.4,2534.2,0.00178215]
[1647032353972,0.0010827,2534.1,2533.8,1.24114237]
[1647032354223,0.0010827,2534.1,2533.7,0.1971]
[1647032354419,0.0575483,2534.1,2533.8,0.02673675]
[1647032354720,0.0010827,2534.1,2533.8,0.02673675]
[1647032355320,1.13975903,2533.8,2533.3,0.07505432]
[1647032355521,1.13975903,2533.8,2533.2,8.18216025]
[1647032356123,2.12677933,2533.8,2533.2,8.18216025]
[1647032356319,0.04879139,2533.7,2533.2,7.34]
[1647032356519,0.04916177,2533.6,2533.2,7.34]
[1647032356720,0.04916177,2533.6,2533.3,0.31662633]
[1647032356925,0.05176605,2534.0,2533.4,0.31662633]
[1647032357127,0.05013595,2534.3,2533.5,0.31662633]
[1647032357327,0.05010201,2534.1,2533.6,0.31662633]
[1647032357533,0.05010201,2534.1,2533.6,0.98674]
[1647032357723,0.05010201,2534.1,2533.7,0.31662633]
[1647032357724,0.0010827,2534.1,2533.7,0.31662633]
[1647032357974,0.0010827,2534.1,2534.0,0.89161442]
[1647032358366,0.0010827,2534.1,2534.0,1.19161442]
[1647032358764,0.0010827,2534.1,2534.0,0.3]
[1647032359165,0.0010827,2534.1,2533.9,0.30226153]
[1647032359367,0.0010827,2534.1,2533.9,0.00226153]
[1647032360071,0.92047331,2534.0,2533.5,1.02083775]
[1647032360273,0.92047331,2534.0,2533.9,0.00226157]
[1647032361266,0.92047331,2534.0,2533.6,0.3]
[1647032361468,1.0326983,2534.1,2533.8,0.00226162]
[1647032362519,1.0326983,2534.1,2533.6,1.32475643]
[1647032362725,0.05617053,2534.0,2533.5,0.3]
[1647032363120,0.05617053,2534.0,2533.4,0.3]
[1647032363321,0.98694,2533.9,2533.5,0.31634147]
[1647032363520,0.98694,2533.9,2533.3,0.3]
[1647032363722,0.98694,2533.9,2533.4,0.31633695]
[1647032363920,0.98694,2533.9,2533.6,0.00203]
[1647032364521,0.05657016,2533.8,2533.6,0.00203]
[1647032364721,1.04354016,2533.8,2533.4,1.37807415]
[1647032364920,1.04354016,2533.8,2533.4,0.3]
[1647032364921,1.89314007,2533.8,2533.4,0.3]
[1647032365224,1.89314007,2533.8,2533.6,0.00202996]
[1647032365225,1.25706349,2533.7,2533.6,0.00202996]
[1647032365479,4.81378411,2533.7,2533.6,0.00202996]
[1647032366072,0.92822844,2533.4,2532.9,1.2396197]
[1647032366266,0.05038387,2533.6,2532.9,1.2396197]
[1647032366267,0.98708,2533.5,2533.1,0.03857661]
[1647032366467,0.05103843,2533.4,2533.1,0.03857661]
[1647032367272,0.05103843,2533.4,2532.5,1.2382]
[1647032367273,0.98726,2533.4,2532.5,1.2382]
[1647032367473,0.05643237,2533.2,2533.1,0.00180483]
[1647032368469,0.05643237,2533.2,2532.8,1.07220951]
[1647032368670,0.05643237,2533.2,2533.0,0.0018049]
[1647032369720,1.10826476,2533.4,2532.8,1.37220951]
[1647032369721,0.05504829,2533.4,2532.8,1.37220951]
[1647032369920,1.1843749,2533.7,2532.8,1.37220951]
[1647032370122,0.05398127,2533.6,2533.0,0.00180494]
[1647032370523,12.479,2533.9,2533.0,0.00180494]
[1647032370723,1.08991451,2533.3,2533.0,0.00180494]
[1647032370919,2.07706451,2533.3,2532.8,1.07220951]
[1647032371120,2.07706451,2533.3,2533.2,0.0018048]
[1647032371320,1.08991451,2533.3,2533.2,0.0018048]
[1647032372124,0.05584639,2533.5,2532.8,1.07220951]
[1647032372325,0.05584639,2533.5,2533.1,0.0018505]
[1647032373163,0.05584639,2533.5,2532.8,1.37220951]
[1647032373371,0.05584639,2533.5,2533.2,0.82029918]
[1647032373564,0.92725552,2533.8,2533.2,0.82214964]
[1647032373763,0.05482738,2533.7,2533.2,0.82214964]
[1647032374362,0.05482738,2533.7,2533.2,0.82029918]
[1647032374766,4.4439827,2534.1,2533.3,0.00185035]
[1647032374970,0.05231185,2534.0,2533.4,0.98684]
[1647032375175,0.5010827,2534.1,2533.6,0.98668]
[1647032375365,0.5010827,2534.1,2533.7,4.069]
[1647032375567,0.0010827,2534.1,2533.8,0.08698504]
[1647032375967,0.0010827,2534.1,2533.9,0.87565108]
[1647032376164,0.0010827,2534.1,2534.0,1.06971549]
[1647032378926,0.0010827,2534.1,2534.0,2.05618189]
[1647032379626,0.0010827,2534.1,2534.0,2.37543438]
[1647032379828,0.0010827,2534.1,2534.0,2.05618189]
[1647032380229,0.0010827,2534.1,2534.0,1.3889692]
[1647032380486,0.0010827,2534.1,2534.0,1.06971549]
[1647032380671,0.0010827,2534.1,2533.9,2.46406304]
[1647032380869,0.0010827,2534.1,2533.9,2.16406304]
[1647032381076,0.0010827,2534.1,2533.9,0.00040114]
[1647032381670,0.0010827,2534.1,2533.5,1.97349]
[1647032381877,0.0010827,2534.1,2533.6,0.3199674]
[1647032382076,0.93444435,2534.0,2533.6,0.3199674]
[1647032382276,1.30386058,2533.9,2533.1,0.25]
[1647032382478,1.30386058,2533.9,2532.7,0.08410363]
[1647032382479,1.25376807,2533.8,2532.7,0.08410363]
[1647032382677,16.02624414,2533.7,2532.4,0.07226583]
[1647032382881,16.02624414,2533.7,2532.2,4.73395]
[1647032382882,11.91,2533.5,2532.5,0.32024244]
[1647032383075,11.91,2533.5,2533.0,0.00741131]
[1647032383076,0.05380175,2533.3,2533.0,0.00741131]
[1647032383277,2.21329224,2533.2,2533.0,0.03520371]
[1647032383478,0.0485127,2533.1,2533.0,0.03520371]
[1647032383681,9.21173846,2533.1,2533.0,3.71e-06]
[1647032383881,9.40903846,2533.1,2533.0,3.71e-06]
[1647032384084,9.40903846,2533.1,2532.1,0.157951]
[1647032384085,22.31903846,2533.1,2532.1,0.157951]
[1647032384328,0.05508994,2532.5,2532.1,0.157951]
[1647032384525,0.05508994,2532.5,2531.3,0.25]
[1647032384526,0.05529471,2532.2,2531.3,0.25]
[1647032384727,0.05529471,2532.2,2531.4,1.21732686]
[1647032384728,1.06531957,2532.0,2531.4,1.21732686]
[1647032384925,0.05144723,2531.9,2531.5,0.32037851]
[1647032385425,0.05144723,2531.9,2531.6,0.32037851]
[1647032385628,0.05144723,2531.9,2531.2,0.01251658]
[1647032385629,3.05144723,2531.9,2531.2,0.01251658]
[1647032385829,0.05023965,2531.6,2531.2,0.01251658]
[1647032386027,0.61923965,2531.6,2531.2,0.01251658]
[1647032386226,0.569,2531.6,2531.2,0.01251658]
[1647032386428,0.569,2531.6,2530.4,3.5]
[1647032386429,0.04862591,2531.4,2530.5,0.96964644]
[1647032386626,0.95558949,2531.0,2530.6,0.31107524]
[1647032388271,0.95558949,2531.0,2530.3,0.08592354]
[1647032388272,1.77578949,2531.0,2530.3,0.08592354]
[1647032388469,1.77578949,2531.0,2529.9,12.4826]
[1647032388470,0.05440283,2530.9,2530.0,0.27086229]
[1647032388664,0.05440283,2530.9,2530.1,0.31071084]
[1647032389463,0.9882,2530.9,2530.1,0.31071084]
[1647032389663,1.06405265,2530.7,2530.1,1.25122219]
[1647032389865,1.06405265,2530.7,2530.2,0.31071084]
[1647032390065,1.06405265,2530.7,2530.2,0.61071084]
[1647032390265,1.06405265,2530.7,2530.1,0.94051135]
[1647032390466,1.06405265,2530.7,2530.3,0.00217271]
[1647032390670,0.04873454,2530.6,2530.3,0.00217271]
[1647032390869,12.479,2530.5,2530.3,0.00217271]
[1647032391068,11.963346,2530.4,2530.3,0.00217271]
[1647032391266,11.963346,2530.4,2529.5,0.25]
[1647032391267,13.542346,2530.4,2529.5,0.25]
[1647032391468,11.91,2530.2,2529.5,0.25]
[1647032391721,0.04425836,2529.7,2528.8,5.3914]
[1647032391919,0.04630773,2529.5,2528.9,0.30959763]
[1647032392120,1.569,2529.9,2529.0,0.30959763]
[1647032392322,0.05083507,2530.1,2529.1,0.30959763]
[1647032392519,0.05083507,2530.1,2529.0,0.1975]
[1647032392520,0.05083507,2530.1,2529.2,0.30959763]
[1647032392719,0.05083507,2530.1,2529.3,0.30959763]
[1647032392920,1.06284804,2529.9,2529.0,0.1975]
[1647032393118,1.06284804,2529.9,2529.1,0.30427225]
[1647032393119,9.0,2529.7,2529.1,0.30427225]
[1647032393319,9.0,2529.7,2529.2,0.1975]
[1647032393519,9.0,2529.7,2529.3,0.27253078]
[1647032393719,9.0,2529.7,2529.0,0.4975]
[1647032393921,9.0,2529.7,2529.4,1.06914273]
[1647032394358,9.0,2529.7,2529.5,3.5]
[1647032394524,9.0,2529.7,2529.6,0.26897599]
[1647032394721,7.21362208,2529.7,2529.6,0.26897599]
[1647032394920,2.84950885,2531.2,2529.7,3.75036384]
[1647032395224,0.5,2530.2,2529.9,1.16302676]
[1647032395480,1.0,2530.6,2530.0,0.2664291]
[1647032395668,1.0,2530.6,2530.0,3.7664291]
[1647032395869,0.395,2531.3,2530.1,0.0688174]
[1647032396069,0.04569621,2532.0,2530.3,12.89767]
[1647032396270,0.04569621,2532.0,2531.5,0.9223417]
[1647032396472,0.04569621,2532.0,2530.9,0.0744903]
[1647032396668,0.04569621,2532.0,2531.0,0.1975]
[1647032396875,0.04569621,2532.0,2531.0,0.07041049]
[1647032397270,0.2345456,2532.5,2531.0,0.26791049]
[1647032397472,0.5,2531.8,2531.1,0.9875]
[1647032397671,0.5,2531.8,2531.4,0.00214462]
[1647032397871,0.1975,2532.9,2531.5,0.1975]
[1647032398072,0.00392568,2533.1,2531.5,0.84063051]
[1647032398073,0.24222458,2533.0,2531.5,0.84063051]
[1647032398276,0.24222458,2533.0,2532.2,1.01336402]
[1647032398277,0.1973,2533.0,2532.2,1.01336402]
[1647032398477,1.5,2532.6,2532.2,1.01336402]
[1647032398672,1.5,2532.6,2532.2,0.56741725]
[1647032398873,1.5,2532.6,2532.2,0.07011725]
[1647032399071,1.5,2532.6,2531.6,0.08285762]
[1647032399522,1.5,2532.6,2531.7,0.1974]
[1647032399722,1.5,2532.6,2531.9,0.06814616]
[1647032399921,3.5,2532.5,2531.9,0.06814616]
[1647032400121,1.5,2532.6,2532.0,0.00196301]
[1647032400338,0.05642067,2532.4,2531.5,0.18926571]
[1647032400527,1.0,2532.6,2531.7,0.159747]
[1647032400723,0.5,2532.7,2532.0,3.0]
[1647032400923,0.0054,2533.0,2532.5,0.99294469]
[1647032401123,0.0054,2533.0,2532.6,0.27777095]
[1647032402129,0.0054,2533.0,2532.6,1.26473095]
[1647032402331,0.0054,2533.0,2532.7,0.07585478]
[1647032402529,0.0054,2533.0,2532.8,0.26390452]
[1647032402725,0.0388,2533.0,2532.9,0.475]
[1647032402972,0.0388,2533.0,2532.9,0.6723]
[1647032403167,0.0388,2533.0,2532.9,1.83517493]
[1647032403563,0.0388,2533.0,2532.9,1.63787493]
[1647032403763,0.0388,2533.0,2532.9,1.16287493]
[1647032403966,0.38810722,2533.0,2532.9,1.16287493]
[1647032404164,0.3952,2533.9,2532.9,1.16287493]
[1647032404766,0.0892358,2533.3,2532.9,1.16287493]
[1647032404965,0.0892358,2533.3,2533.0,0.98685]
[1647032405164,0.00394396,2533.5,2533.4,1.1380845]
[1647032405567,0.00394396,2533.5,2533.4,1.4380845]
[1647032405964,0.00394394,2533.6,2533.4,1.4380845]
[1647032406166,0.00394394,2533.6,2533.4,0.3]
[1647032406167,0.0892358,2533.5,2533.4,0.3]
[1647032406365,0.00394394,2533.6,2533.4,0.3]
[1647032406564,0.00394394,2533.6,2533.0,1.18415]
[1647032406823,0.00394394,2533.6,2533.0,0.98685]
[1647032407025,0.38810722,2533.3,2533.0,1.28685]
[1647032407226,0.00394398,2533.4,2533.1,1.02290253]
[1647032407432,0.00394398,2533.4,2532.9,0.053875]
[1647032407631,0.0892358,2533.2,2532.9,0.053875]
[1647032408125,0.05229681,2533.3,2532.9,0.053875]
[1647032408327,13.5,2533.1,2532.9,0.053875]
[1647032408527,0.38810722,2533.0,2532.9,0.053875]
[1647032408725,1.44710722,2533.0,2532.9,0.053875]
[1647032409125,2.67664851,2533.0,2532.9,0.053875]
[1647032409325,3.816954,2533.0,2532.9,0.053875]
[1647032409724,3.816954,2533.0,2532.9,1.17278718]
[1647032410143,2.757954,2533.0,2532.9,1.17278718]
[1647032410473,2.757954,2533.0,2532.9,1.72278718]
[1647032411170,2.7570016,2533.0,2532.9,0.303875]
[1647032411571,2.7570016,2533.0,2532.9,0.603875]
[1647032412179,2.7570016,2533.0,2532.9,0.303875]
[1647032412180,3.82292122,2533.0,2532.9,0.303875]
[1647032412577,2.7570016,2533.0,2532.9,0.303875]
[1647032413579,11.35747747,2533.1,2533.0,1.12349897]
[1647032414217,11.35365919,2533.1,2533.0,1.12349897]
[1647032414417,0.5010827,2534.1,2533.1,4.0]
[1647032414620,0.00381826,2533.2,2533.1,5.97359]
[1647032414816,0.00381826,2533.2,2533.1,3.57359]
[1647032415419,1.05769358,2533.9,2533.1,3.57359]
[1647032415620,0.5010827,2534.1,2533.0,1.12349897]
[1647032415621,0.00383059,2533.3,2533.0,1.97359]
[1647032415815,0.00383059,2533.3,2533.1,0.3]
[1647032416016,0.00383059,2533.3,2533.0,2.27359]
[1647032416517,0.00383059,2533.3,2533.1,0.98678]
[1647032416720,0.5010827,2534.1,2533.7,1.03493011]
[1647032416721,0.1737322,2533.9,2533.7,1.03493011]
[1647032418069,0.17756266,2533.9,2533.7,1.03493011]
[1647032418263,0.17756266,2533.9,2533.6,0.3]
[1647032418465,0.17756266,2533.9,2533.3,0.5507976]
[1647032418663,0.17756266,2533.9,2533.4,0.3]
[1647032419066,0.1737322,2533.9,2533.4,0.3]
[1647032419265,0.00382771,2533.8,2533.4,0.3]
[1647032419464,0.00382771,2533.8,2533.4,1.28674]
[1647032420072,0.00382771,2533.8,2533.5,2.08802714]
[1647032420267,0.1737322,2533.9,2533.5,2.86302714]
[1647032420673,0.00382772,2533.7,2533.5,3.86302714]
[1647032420867,0.00382772,2533.7,2533.6,1.97311]
[1647032421067,0.00382772,2533.7,2533.5,2.38802714]
[1647032421267,0.00382772,2533.7,2533.5,1.2866]
[1647032421472,0.1737322,2533.9,2533.5,0.9866]
[1647032421715,0.00382772,2533.7,2533.4,1.97319]
[1647032421919,0.00382772,2533.7,2533.1,1.97365]
[1647032422324,0.00382772,2533.7,2533.0,1.83231849]
[1647032422720,0.65383918,2534.1,2533.0,1.83231849]
[1647032422917,0.65383918,2534.1,2533.1,3.5]
[1647032422918,0.00382839,2533.5,2533.1,3.5]
[1647032423119,0.00382839,2533.5,2533.1,3.9465]
[1647032423321,0.00382839,2533.5,2533.1,9.0465]
[1647032423518,0.00382839,2533.5,2533.4,1.0329898]
[1647032423720,0.00382839,2533.5,2533.4,1.2867]
[1647032423919,0.87065106,2533.9,2533.4,1.2867]
[1647032424117,0.65383918,2534.1,2533.4,1.2867]
[1647032424118,0.01531134,2533.8,2533.4,1.2867]
[1647032424717,0.01531134,2533.8,2533.5,0.07972848]
[1647032424921,0.01531134,2533.8,2533.6,0.08742865]
[1647032425222,0.65383918,2534.1,2534.0,1.02001817]
[1647032425467,0.66915027,2534.1,2534.0,1.02001817]
[1647032425668,0.61915027,2534.1,2534.0,1.02001817]
[1647032426071,0.61915027,2534.1,2534.0,1.32001817]
[1647032426270,0.17483918,2534.1,2534.0,1.32001817]
[1647032427377,0.17483918,2534.1,2534.0,1.02001817]
[1647032427572,0.17483918,2534.1,2533.8,0.3]
[1647032427874,0.17483918,2534.1,2533.7,1.97308]
[1647032428273,0.1748149,2534.1,2533.7,1.97308]
[1647032428478,0.0459543,2534.1,2534.0,0.88730906]
[1647032429524,0.0459543,2534.1,2534.0,1.18730906]
[1647032430524,0.17351465,2534.4,2534.0,1.18730906]
[1647032431138,0.17351465,2534.4,2534.0,2.17386906]
[1647032433573,0.17351465,2534.4,2534.0,3.16041906]
[1647032433878,0.00394376,2534.3,2534.0,2.17386906]
[1647032434673,0.17351465,2534.4,2534.0,2.17386906]
[1647032434876,0.00394369,2534.3,2534.0,2.17386906]
[1647032435875,0.17351465,2534.4,2534.0,2.17386906]
[1647032436177,0.00394369,2534.3,2534.0,2.17386906]
[1647032437026,0.17351465,2534.4,2534.0,2.17386906]
[1647032437222,0.05237525,2534.6,2534.0,2.17386906]
[1647032437423,0.00394369,2534.3,2534.0,3.16041906]
[1647032437625,0.00394369,2534.3,2534.0,2.17386906]
[1647032438225,1.4629368,2534.7,2534.0,2.17386906]
[1647032438424,0.00388044,2534.3,2534.0,2.17386906]
[1647032438628,0.00388044,2534.3,2534.0,3.16043906]
[1647032439229,0.00388044,2534.3,2534.0,3.11043906]
[1647032439425,0.04242124,2534.6,2534.0,3.11043906]
[1647032439628,0.00388044,2534.3,2534.0,3.11043906]
[1647032439925,0.00388044,2534.3,2534.1,1.97309]
[1647032440125,0.00388044,2534.3,2534.1,0.25088067]
[1647032440326,0.00388044,2534.3,2534.1,0.62274601]
[1647032440570,0.00388044,2534.3,2534.1,0.92274601]
[1647032440770,0.46874624,2534.7,2534.2,0.06906386]
[1647032440971,1.23585738,2534.6,2534.3,1.97289]
[1647032441173,1.23585738,2534.6,2534.5,0.99586707]
[1647032445125,1.23585738,2534.6,2534.5,1.29586707]
[1647032445724,1.23585738,2534.6,2534.5,0.3]
[1647032446127,1.23585738,2534.6,2534.3,0.23502282]
[1647032446328,1.23585738,2534.6,2534.4,0.98643]
[1647032446531,0.47257643,2534.7,2534.5,0.07853298]
[1647032446726,0.46874624,2534.7,2534.5,0.07853298]
[1647032446935,1.2395105,2534.6,2534.5,0.07853298]
[1647032447130,1.2433407,2534.6,2534.5,0.07853298]
[1647032447966,1.2395105,2534.6,2534.5,0.07853298]
[1647032448573,1.2395105,2534.6,2534.0,0.08929504]
[1647032448776,2.40911472,2534.7,2533.8,0.07943622]
[1647032448971,1.2395105,2534.6,2533.8,0.07943622]
[1647032449171,0.9868142,2534.4,2533.8,0.07943622]
[1647032449374,1.2395105,2534.3,2533.9,0.07204145]
[1647032449576,0.00382696,2534.4,2533.9,1.05865145]
[1647032449774,0.00382696,2534.4,2534.0,0.08542969]
[1647032449971,0.00382696,2534.4,2534.3,1.01024124]
[1647032450174,0.00382696,2534.4,2534.3,1.09209938]
[1647032450376,1.23955739,2534.6,2534.3,1.31024124]
[1647032450674,0.00382695,2534.5,2534.4,2.05092668]
[1647032451472,1.23955739,2534.6,2534.4,2.05092668]
[1647032451735,1.24338432,2534.6,2534.5,0.07509768]
[1647032452325,1.24338432,2534.6,2534.5,1.36140768]
[1647032452629,1.24338432,2534.6,2534.5,1.28631]
[1647032452828,1.23955739,2534.6,2534.5,4.78631]
[1647032453227,0.47257389,2534.7,2534.5,4.78631]
[1647032453527,0.47257389,2534.7,2534.6,3.5]
[1647032453929,0.46874624,2534.7,2534.6,3.5]
[1647032454426,0.46874624,2534.7,2534.5,3.55861]
[1647032454633,0.46874624,2534.7,2534.5,2.27243]
[1647032454829,1.24005037,2534.6,2534.5,0.3]
[1647032455029,1.24005037,2534.6,2534.4,0.3]
[1647032455227,1.24005037,2534.6,2534.3,2.81024124]
[1647032456072,1.24005037,2534.6,2534.3,3.79666124]
[1647032456471,1.24005037,2534.6,2534.4,0.34141768]
[1647032456472,0.0039466,2534.6,2534.4,0.34141768]
[1647032456673,0.42269284,2534.7,2534.3,4.79666124]
[1647032456875,0.42269284,2534.7,2534.4,0.34140965]
[1647032457478,0.42269284,2534.7,2534.4,2.31401965]
[1647032457779,1.24203322,2534.6,2534.5,2.31409754]
[1647032458276,1.24203322,2534.6,2534.5,2.61409591]
[1647032458676,0.42269284,2534.7,2534.5,2.61409591]
[1647032458877,0.42269284,2534.7,2534.6,0.3]
[1647032459320,1.66431521,2534.7,2534.6,0.3]
[1647032460122,1.66431521,2534.7,2534.5,3.7724286]
[1647032460622,0.42269284,2534.7,2534.5,3.7724286]
[1647032460820,1.23313456,2534.6,2534.5,3.7724286]
[1647032461019,1.23310994,2534.6,2534.5,3.7724286]
[1647032461224,0.42269284,2534.7,2534.5,8.62298082]
[1647032461424,0.4266394,2534.7,2534.6,3.85055222]
[1647032461721,0.4266394,2534.7,2534.6,1.35055222]
[1647032462130,0.4266394,2534.7,2534.6,0.35055222]
[1647032462434,0.4266394,2534.7,2534.6,0.65055222]
[1647032462435,0.29383224,2534.7,2534.6,0.65055222]
[1647032462626,1.52714501,2534.7,2534.6,0.65055222]
[1647032463470,1.52687911,2534.7,2534.6,0.65055222]
[1647032463672,0.29383224,2534.7,2534.6,0.65055222]
[1647032465076,1.52754925,2534.7,2534.6,0.65055222]
[1647032465271,0.29383224,2534.7,2534.6,0.65055222]
[1647032465470,1.52754925,2534.7,2534.6,0.65055222]
[1647032465673,1.52758786,2534.7,2534.6,0.65055222]
[1647032465874,1.52756977,2534.7,2534.6,0.65055222]
[1647032467825,0.29383224,2534.7,2534.6,0.65055222]
[1647032468424,1.481907,2534.7,2534.6,0.65055222]
[1647032469026,1.431907,2534.7,2534.6,0.65055222]
[1647032469629,1.43265647,2534.7,2534.6,0.65055222]
[1647032469829,0.19896064,2534.7,2534.6,4.15055222]
[1647032470234,0.19896064,2534.7,2534.6,1.65055222]
[1647032470473,1.4323794,2534.7,2534.6,0.65055222]
[1647032470673,0.19896064,2534.7,2534.6,0.65055222]
[1647032470872,1.43244544,2534.7,2534.6,0.65055222]
[1647032471274,1.43244544,2534.7,2534.6,4.55055222]
[1647032471673,1.43244544,2534.7,2534.6,5.55055222]
[1647032472075,0.19896064,2534.7,2534.6,5.55055222]
[1647032472882,0.19896064,2534.7,2534.6,9.05055222]
[1647032473279,0.19896064,2534.7,2534.6,5.55055222]
[1647032473679,0.19896064,2534.7,2534.6,9.05055222]
[1647032474079,0.19896064,2534.7,2534.6,5.55055222]
[1647032474721,0.19896064,2534.7,2534.6,9.05055222]
[1647032475324,0.0897432,2534.9,2534.7,6.472]
[1647032475535,1.0,2535.9,2534.7,6.472]
[1647032475536,1.5746,2535.8,2534.9,6.0]
[1647032475742,0.1971,2536.4,2534.9,6.0]
[1647032475743,2.34448198,2537.0,2535.5,3.0]
[1647032475932,0.01428,2538.0,2535.9,0.01246368]
[1647032476137,1.86172684,2539.3,2536.8,8.341]
[1647032476332,1.42136828,2538.8,2536.9,1.10848347]
[1647032476530,1.54029579,2539.4,2539.3,0.9823771]
[1647032476732,0.0020479,2540.4,2539.4,4.84828398]
[1647032476733,3.15892602,2540.4,2539.4,4.84828398]
[1647032476932,0.41085214,2540.7,2539.5,7.95965895]
[1647032476933,1.88315689,2540.7,2539.5,7.95965895]
[1647032477131,1.85818856,2540.7,2540.6,7.105]
[1647032477333,0.70660513,2541.7,2540.7,6.86092928]
[1647032477533,2.9164716,2542.3,2540.9,17.91]
[1647032477727,0.54878261,2542.8,2541.6,53.27]
[1647032477982,0.0662209,2543.4,2541.6,53.27]
[1647032477983,16.23221548,2543.6,2542.7,21.315]
[1647032478203,16.06291548,2543.6,2542.8,12.89093999]
[1647032478382,2.10466531,2543.8,2543.0,0.25]
[1647032478383,0.50454504,2543.8,2543.0,0.25]
[1647032478686,0.0720258,2545.1,2543.7,7.105]
[1647032478687,19.65231181,2545.0,2543.7,7.105]
[1647032478880,0.18535489,2545.0,2544.9,7.65437385]
[1647032479079,0.02985657,2545.7,2545.1,0.54937385]
[1647032479080,9.14665215,2545.2,2545.1,0.54937385]
[1647032479283,0.0490508,2545.6,2545.2,6.0]
[1647032479483,0.0385311,2546.8,2545.9,0.61293447]
[1647032479684,0.70741086,2547.3,2546.1,0.80780782]
[1647032479878,0.0055222,2547.5,2547.2,7.11778855]
[1647032480083,0.04954318,2547.9,2547.4,7.11717122]
[1647032480084,0.0473947,2547.9,2547.4,7.11717122]
[1647032480290,0.8367305,2548.8,2547.7,7.11718112]
[1647032480480,0.8367305,2548.8,2548.0,0.685]
[1647032480481,0.00224687,2548.3,2548.0,0.685]
[1647032480690,0.00224687,2548.3,2548.2,8.04]
[1647032480879,0.0398316,2548.9,2548.3,0.685]
[1647032481081,0.0398316,2548.9,2548.8,7.105]
[1647032481281,5.02e-05,2549.1,2548.8,12.95062946]
[1647032481480,0.12745046,2549.7,2549.1,0.685]
[1647032481733,0.07236458,2551.2,2549.6,0.01241102]
[1647032481734,0.0627522,2550.2,2549.6,0.01241102]
[1647032481943,0.1603528,2551.0,2549.8,0.685]